bitfinex/quotes_SOLUSD_20241231
["timestamp","ask_amount","ask_price","bid_price","bid_amount"]
[1735656567578,23.776884,197.84,197.76,15.34315684]
[1735656567883,1.5379,197.85,197.76,15.34315684]
[1735656568087,1.5379,197.85,197.78,15.34315684]
[1735656568900,1.5379,197.85,197.8,15.34315684]
[1735656569398,1.5379,197.85,197.79,15.34315684]
[1735656572609,1.5379,197.85,197.78,15.34315684]
[1735656573206,1.5379,197.85,197.77,15.34315684]
[1735656573993,1.5379,197.85,197.76,15.34315684]
[1735656574515,1.5379,197.85,197.77,15.34315684]
[1735656575201,1.5379,197.85,197.76,15.34315684]
[1735656575589,1.5379,197.85,197.75,15.34315684]
[1735656576689,1.5379,197.85,197.74,15.34315684]
[1735656577086,1.5379,197.85,197.73,15.34315684]
[1735656577294,1.5379,197.85,197.69,6.3632]
[1735656577487,23.776884,197.8,197.64,145.507]
[1735656577696,23.776884,197.8,197.7,15.34315684]
[1735656578086,23.776884,197.8,197.71,15.34315684]
[1735656578687,23.776884,197.8,197.72,15.34315684]
[1735656578905,4.6559,197.81,197.64,145.507]
[1735656578906,1.5379,197.85,197.77,15.34315684]
[1735656579286,23.776884,197.82,197.76,15.34315684]
[1735656579482,23.776884,197.8,197.74,15.34315684]
[1735656579688,23.776884,197.8,197.73,15.34315684]
[1735656579891,23.776884,197.8,197.74,15.34315684]
[1735656580095,23.776884,197.8,197.75,15.34315684]
[1735656580294,23.776884,197.8,197.74,15.34315684]
[1735656580504,23.776884,197.8,197.73,15.34315684]
[1735656580906,23.776884,197.8,197.74,15.34315684]
[1735656581108,23.776884,197.76,197.64,165.763813]
[1735656581315,23.776884,197.76,197.71,15.34315684]
[1735656581789,23.776884,197.76,197.64,145.507]
[1735656581790,23.776884,197.76,197.69,15.34315684]
[1735656582114,23.776884,197.76,197.64,145.507]
[1735656582115,23.776884,197.76,197.71,15.34315684]
[1735656582607,23.776884,197.76,197.7,15.34315684]
[1735656582994,23.776884,197.76,197.66,12.6475]
[1735656583194,23.776884,197.76,197.69,15.34315684]
[1735656583597,23.776884,197.76,197.71,15.34315684]
[1735656584311,23.776884,197.76,197.72,15.34315684]
[1735656585214,1.5379,197.85,197.73,15.34315684]
[1735656585413,1.5379,197.85,197.76,15.34315684]
[1735656585617,1.5379,197.85,197.77,15.34315684]
[1735656585819,23.776884,197.84,197.77,15.34315684]
[1735656586012,23.776884,197.8,197.77,15.34315684]
[1735656586325,20.0,197.81,197.76,15.34315684]
[1735656586536,23.776884,197.8,197.75,15.34315684]
[1735656586810,23.776884,197.8,197.74,15.34315684]
[1735656587032,23.776884,197.8,197.72,15.34315684]
[1735656587713,23.776884,197.76,197.69,15.34315684]
[1735656588297,23.776884,197.76,197.68,15.34315684]
[1735656589699,23.776884,197.76,197.64,158.1562]
[1735656589700,23.776884,197.76,197.69,15.34315684]
[1735656590018,22.461796,197.76,197.69,15.34315684]
[1735656590322,22.461796,197.76,197.7,15.34315684]
[1735656590499,22.461796,197.76,197.71,15.34315684]
[1735656590699,22.461796,197.76,197.72,15.34315684]
[1735656591508,22.461796,197.76,197.71,15.34315684]
[1735656591914,22.461796,197.76,197.7,15.34315684]
[1735656592524,22.461796,197.76,197.71,15.34315684]
[1735656592701,22.461796,197.76,197.7,15.34315684]
[1735656594019,22.461796,197.76,197.69,15.34315684]
[1735656594811,22.461796,197.76,197.67,15.34315684]
[1735656595206,23.776884,197.74,197.67,15.34315684]
[1735656595404,23.776884,197.74,197.65,15.34315684]
[1735656595606,23.776884,197.74,197.66,15.34315684]
[1735656595800,23.776884,197.74,197.65,15.34315684]
[1735656597619,23.776884,197.74,197.64,21.70635684]
[1735656597815,23.776884,197.7,197.64,15.34315684]
[1735656598420,23.776884,197.7,197.65,15.34315684]
[1735656600223,23.776884,197.7,197.66,15.34315684]
[1735656600419,20.0,197.74,197.66,15.34315684]
[1735656600620,23.776884,197.73,197.66,15.34315684]
[1735656601023,23.776884,197.73,197.64,15.34315684]
[1735656601231,23.776884,197.73,197.65,15.34315684]
[1735656601522,43.776884,197.74,197.65,15.34315684]
[1735656601722,23.776884,197.73,197.66,15.34315684]
[1735656602230,23.776884,197.73,197.65,15.34315684]
[1735656602825,1.6266,197.75,197.69,15.34315684]
[1735656603036,6.2825,197.83,197.68,15.34315684]
[1735656603248,20.0,197.8,197.68,15.34315684]
[1735656603411,23.776884,197.82,197.68,15.34315684]
[1735656603724,20.0,197.75,197.65,15.34315684]
[1735656603911,23.776884,197.74,197.64,15.34315684]
[1735656604231,20.0,197.8,197.69,15.34315684]
[1735656604630,23.776884,197.75,197.69,15.34315684]
[1735656604827,23.776884,197.82,197.7,15.34315684]
[1735656605325,20.0,197.79,197.7,15.34315684]
[1735656605711,6.2825,197.83,197.72,15.34315684]
[1735656606017,6.2825,197.83,197.74,15.34315684]
[1735656606222,20.0,197.8,197.74,15.34315684]
[1735656606519,23.776884,197.79,197.75,15.34315684]
[1735656606711,1.6266,197.83,197.75,15.34315684]
[1735656606911,1.6266,197.83,197.76,15.34315684]
[1735656607120,6.1872,197.88,197.77,15.34315684]
[1735656607325,20.0,197.85,197.78,15.34315684]
[1735656607518,23.776884,197.87,197.78,15.34315684]
[1735656607719,6.1872,197.88,197.78,15.34315684]
[1735656607929,20.0,197.85,197.78,15.34315684]
[1735656608125,20.0,197.85,197.76,15.34315684]
[1735656608513,23.776884,197.84,197.76,15.34315684]
[1735656608927,6.1872,197.88,197.78,15.34315684]
[1735656609128,6.1872,197.88,197.7,152.94315684]
[1735656609129,1.5313,197.88,197.76,15.34315684]
[1735656609317,20.0,197.84,197.75,15.34315684]
[1735656609533,20.0,197.84,197.7,152.94315684]
[1735656609534,20.0,197.84,197.76,15.34315684]
[1735656609822,1.5313,197.88,197.77,15.34315684]
[1735656610028,1.5313,197.88,197.76,15.34315684]
[1735656610235,20.0,197.84,197.76,15.34315684]
[1735656610729,20.0,197.84,197.78,15.34315684]
[1735656610931,20.0,197.84,197.77,15.34315684]
[1735656611433,20.0,197.84,197.76,15.34315684]
[1735656611934,20.0,197.84,197.77,15.34315684]
[1735656612126,20.0,197.84,197.76,15.34315684]
[1735656612515,23.776884,197.87,197.78,15.34315684]
[1735656613336,23.776884,197.87,197.77,15.34315684]
[1735656614915,23.776884,197.87,197.78,15.34315684]
[1735656615525,23.776884,197.87,197.77,15.34315684]
[1735656615819,20.0,197.84,197.75,15.34315684]
[1735656616334,20.0,197.84,197.75,9.84014344]
[1735656617055,20.0,197.84,197.76,9.84014344]
[1735656617218,20.0,197.84,197.77,9.84014344]
[1735656618032,20.0,197.84,197.76,9.84014344]
[1735656618841,23.776884,197.83,197.76,9.84014344]
[1735656619140,23.776884,197.83,197.74,9.84014344]
[1735656619337,23.776884,197.83,197.73,9.84014344]
[1735656619736,1.5313,197.88,197.77,9.84014344]
[1735656619936,1.5313,197.88,197.79,9.84014344]
[1735656620234,21.5313,197.88,197.79,9.84014344]
[1735656620414,23.776884,197.87,197.77,9.84014344]
[1735656621541,23.776884,197.87,197.78,9.84014344]
[1735656622517,23.776884,197.87,197.76,9.84014344]
[1735656622725,23.776884,197.83,197.74,9.84014344]
[1735656623137,23.776884,197.79,197.73,9.84014344]
[1735656623317,23.776884,197.79,197.71,9.84014344]
[1735656623522,23.776884,197.79,197.7,147.44014344]
[1735656624327,25.422584,197.79,197.7,147.44014344]
[1735656624529,25.422584,197.79,197.7,9.84014344]
[1735656624844,25.422584,197.79,197.69,16.02024344]
[1735656625233,25.422584,197.79,197.7,9.84014344]
[1735656625542,20.0,197.76,197.66,137.6]
[1735656626126,23.776884,197.75,197.68,9.84014344]
[1735656626541,23.776884,197.75,197.66,137.6]
[1735656626743,23.776884,197.75,197.66,147.44014344]
[1735656627527,23.776884,197.75,197.66,9.84014344]
[1735656628038,23.776884,197.75,197.64,16.18704344]
[1735656628239,23.776884,197.75,197.64,6.3469]
[1735656628443,23.776884,197.71,197.66,9.84014344]
[1735656628845,23.776884,197.71,197.64,16.18704344]
[1735656629041,23.776884,197.71,197.64,9.84014344]
[1735656630650,23.776884,197.71,197.65,9.84014344]
[1735656631051,23.776884,197.71,197.64,9.84014344]
[1735656631258,23.776884,197.71,197.66,9.84014344]
[1735656632157,23.776884,197.71,197.65,9.84014344]
[1735656633148,23.776884,197.71,197.64,9.84014344]
[1735656633360,23.776884,197.71,197.63,9.84014344]
[1735656633531,23.776884,197.69,197.6,9.84014344]
[1735656633731,23.776884,197.65,197.59,16.18704344]
[1735656633955,23.776884,197.65,197.58,9.84014344]
[1735656634744,23.776884,197.65,197.59,9.84014344]
[1735656636360,23.776884,197.65,197.58,9.84014344]
[1735656636668,23.776884,197.65,197.56,9.84014344]
[1735656637448,23.776884,197.61,197.55,9.84014344]
[1735656637647,23.776884,197.61,197.56,9.84014344]
[1735656639537,23.776884,197.61,197.57,9.84014344]
[1735656639736,1.6457,197.7,197.58,9.84014344]
[1735656639931,1.6457,197.7,197.59,9.84014344]
[1735656640136,20.0,197.69,197.6,9.84014344]
[1735656640445,20.0,197.65,197.6,9.84014344]
[1735656640639,23.776884,197.69,197.61,9.84014344]
[1735656640843,23.776884,197.69,197.54,143.9469]
[1735656641041,23.776884,197.66,197.6,9.84014344]
[1735656641251,23.776884,197.66,197.59,9.84014344]
[1735656642034,4.9999105,197.75,197.59,9.84014344]
[1735656642233,41.28231503,197.77,197.66,9.84014344]
[1735656642638,41.28231503,197.77,197.67,9.84014344]
[1735656642845,1.6503,197.77,197.67,9.84014344]
[1735656643157,43.776884,197.76,197.66,9.84014344]
[1735656643357,20.0,197.7,197.66,9.84014344]
[1735656643561,23.776884,197.69,197.64,9.84014344]
[1735656643738,23.776884,197.69,197.66,9.84014344]
[1735656644142,23.776884,197.69,197.65,9.84014344]
[1735656644453,23.776884,197.69,197.62,21.54404316]
[1735656644760,23.776884,197.69,197.63,15.39224316]
[1735656647080,23.776884,197.69,197.62,6.1518]
[1735656647278,20.0,197.66,197.59,15.39224316]
[1735656647439,23.776884,197.65,197.57,159.14404316]
[1735656647644,23.776884,197.65,197.57,143.7518]
[1735656647955,23.776884,197.61,197.57,6.1518]
[1735656648153,23.776884,197.61,197.54,152.99224316]
[1735656648347,23.776884,197.61,197.54,15.39224316]
[1735656648549,23.776884,197.61,197.53,15.39224316]
[1735656648966,23.776884,197.61,197.52,21.54404316]
[1735656649579,23.776884,197.61,197.53,15.39224316]
[1735656649770,23.776884,197.57,197.52,21.54404316]
[1735656649973,23.776884,197.57,197.53,15.39224316]
[1735656650153,1.6503,197.68,197.54,15.39224316]
[1735656650348,1.6503,197.68,197.56,15.39224316]
[1735656650560,1.6503,197.68,197.57,15.39224316]
[1735656650761,20.0,197.64,197.58,15.39224316]
[1735656650964,1.6503,197.68,197.58,15.39224316]
[1735656651160,1.6503,197.72,197.61,15.39224316]
[1735656651472,1.6503,197.72,197.62,15.39224316]
[1735656651854,1.6503,197.72,197.63,15.39224316]
[1735656652052,1.6503,197.72,197.62,15.39224316]
[1735656652271,23.776884,197.67,197.61,15.39224316]
[1735656652680,23.776884,197.71,197.61,15.39224316]
[1735656653181,23.776884,197.67,197.52,156.4082]
[1735656653353,23.776884,197.59,197.53,15.39224316]
[1735656653854,23.776884,197.59,197.52,21.54404316]
[1735656654588,23.776884,197.59,197.53,15.39224316]
[1735656655074,23.776884,197.59,197.52,21.54404316]
[1735656655675,20.0,197.56,197.52,21.54404316]
[1735656656058,23.776884,197.55,197.52,21.54404316]
[1735656656254,23.776884,197.55,197.52,6.1518]
[1735656656459,23.776884,197.55,197.49,15.39224316]
[1735656656770,23.776884,197.55,197.48,15.39224316]
[1735656657675,23.776884,197.55,197.47,21.68334316]
[1735656658963,23.776884,197.55,197.48,15.39224316]
[1735656660371,23.776884,197.55,197.49,15.39224316]
[1735656660966,23.776884,197.55,197.47,6.2911]
[1735656661274,1.5364,197.63,197.51,15.39224316]
[1735656661572,23.776884,197.62,197.52,15.39224316]
[1735656661788,1.5364,197.63,197.53,15.39224316]
[1735656661958,1.5364,197.63,197.55,15.39224316]
[1735656662156,20.0,197.65,197.57,15.39224316]
[1735656662572,1.5364,197.68,197.58,15.39224316]
[1735656662786,6.1923,197.73,197.6,15.39224316]
[1735656663091,6.1923,197.73,197.61,15.39224316]
[1735656663261,43.776884,197.69,197.58,15.39224316]
[1735656663579,6.1923,197.73,197.59,15.39224316]
[1735656663878,6.1923,197.73,197.6,15.39224316]
[1735656664070,6.1923,197.73,197.62,15.39224316]
[1735656664272,1.5364,197.73,197.64,15.39224316]
[1735656664572,1.5364,197.73,197.63,15.39224316]
[1735656664963,6.2519,197.78,197.64,15.39224316]
[1735656665276,20.0,197.75,197.63,15.39224316]
[1735656665676,23.776884,197.7,197.63,15.39224316]
[1735656665873,20.0,197.71,197.63,15.39224316]
[1735656666079,23.776884,197.7,197.62,15.39224316]
[1735656666282,23.776884,197.7,197.63,15.39224316]
[1735656666483,23.776884,197.7,197.64,15.39224316]
[1735656666874,23.776884,197.7,197.57,150.2537]
[1735656666875,23.776884,197.7,197.63,15.39224316]
[1735656667054,23.776884,197.7,197.62,15.39224316]
[1735656667258,23.776884,197.66,197.61,15.39224316]
[1735656667464,23.776884,197.66,197.58,15.39224316]
[1735656668289,23.776884,197.62,197.56,23.21514316]
[1735656668467,23.776884,197.58,197.53,15.39224316]
[1735656669373,23.776884,197.58,197.52,15.39224316]
[1735656669675,23.776884,197.58,197.51,21.99154316]
[1735656670381,23.776884,197.58,197.51,6.5993]
[1735656670762,23.776884,197.58,197.52,24.65923883]
[1735656670965,23.776884,197.58,197.51,31.25853883]
[1735656671186,23.776884,197.58,197.51,6.5993]
[1735656671569,23.776884,197.58,197.51,31.25853883]
[1735656671769,23.776884,197.58,197.52,24.65923883]
[1735656671970,23.776884,197.58,197.53,24.65923883]
[1735656672578,23.776884,197.58,197.52,24.65923883]
[1735656672773,23.776884,197.58,197.51,24.65923883]
[1735656673684,23.776884,197.58,197.52,24.65923883]
[1735656674266,23.776884,197.58,197.51,24.65923883]
[1735656674464,20.0,197.55,197.5,24.65923883]
[1735656674765,20.0,197.55,197.51,24.65923883]
[1735656675374,20.0,197.55,197.5,24.65923883]
[1735656675979,23.776884,197.54,197.49,24.65923883]
[1735656676181,23.776884,197.54,197.48,24.65923883]
[1735656676785,23.776884,197.54,197.47,24.65923883]
[1735656676966,23.776884,197.54,197.46,31.25853883]
[1735656677168,23.776884,197.54,197.46,6.5993]
[1735656678099,23.776884,197.54,197.47,24.65923883]
[1735656678878,23.776884,197.54,197.46,31.25853883]
[1735656679186,23.776884,197.5,197.44,26.31963883]
[1735656679384,23.776884,197.5,197.43,24.65923883]
[1735656679579,23.776884,197.5,197.45,24.65923883]
[1735656680386,6.2156,197.58,197.46,24.65923883]
[1735656680594,20.0,197.55,197.47,24.65923883]
[1735656680785,23.776884,197.54,197.47,24.65923883]
[1735656680984,20.0,197.55,197.49,24.65923883]
[1735656681192,1.5597,197.58,197.5,24.65923883]
[1735656681509,1.5597,197.58,197.49,24.65923883]
[1735656681887,1.5597,197.58,197.48,24.65923883]
[1735656682207,1.5597,197.58,197.5,24.65923883]
[1735656682390,4.6559,197.63,197.52,24.65923883]
[1735656682391,6.3,197.63,197.52,24.65923883]
[1735656682595,1.6441,197.63,197.54,24.65923883]
[1735656682906,7.926403,197.67,197.58,24.65923883]
[1735656683103,7.926403,197.67,197.59,24.65923883]
[1735656683304,23.776884,197.63,197.57,24.65923883]
[1735656683508,7.926403,197.67,197.56,24.65923883]
[1735656683693,1.6441,197.68,197.57,24.65923883]
[1735656683694,20.0,197.66,197.57,24.65923883]
[1735656683892,1.6441,197.68,197.59,24.65923883]
[1735656684101,9.508503,197.73,197.59,24.65923883]
[1735656684306,20.0,197.7,197.6,24.65923883]
[1735656684811,7.926403,197.76,197.69,24.65923883]
[1735656685003,7.926403,197.76,197.7,24.65923883]
[1735656685388,7.926403,197.76,197.71,24.65923883]
[1735656685889,15.85280601,197.77,197.63,142.6]
[1735656685890,23.776884,197.78,197.7,24.65923883]
[1735656686205,20.0,197.79,197.7,24.65923883]
[1735656686406,20.0,197.81,197.71,24.65923883]
[1735656686801,23.776884,197.8,197.71,24.65923883]
[1735656687308,20.0,197.82,197.71,24.65923883]
[1735656687514,12.48381426,197.86,197.71,24.65923883]
[1735656687808,7.926403,197.86,197.74,24.65923883]
[1735656688011,7.926403,197.86,197.73,24.65923883]
[1735656688012,23.776884,197.85,197.73,24.65923883]
[1735656688383,7.926403,197.86,197.73,24.65923883]
[1735656688592,39.63201503,197.87,197.74,24.65923883]
[1735656688796,39.63201503,197.87,197.75,24.65923883]
[1735656689000,39.63201503,197.87,197.74,24.65923883]
[1735656689209,20.0,197.84,197.7,31.27403883]
[1735656689510,20.0,197.84,197.71,24.65923883]
[1735656690006,23.776884,197.82,197.7,31.27403883]
[1735656690215,23.776884,197.82,197.71,24.65923883]
[1735656690394,9.9999105,197.88,197.72,24.65923883]
[1735656690593,23.776884,197.88,197.72,24.65923883]
[1735656690906,23.776884,197.88,197.7,6.6148]
[1735656690907,20.0,197.77,197.7,31.27403883]
[1735656691105,23.776884,197.76,197.7,6.6148]
[1735656691488,23.776884,197.72,197.66,24.65923883]
[1735656691698,23.776884,197.72,197.65,31.27403883]
[1735656691902,23.776884,197.72,197.66,24.65923883]
[1735656692809,23.776884,197.72,197.67,24.65923883]
[1735656693320,20.0,197.78,197.69,24.65923883]
[1735656693519,20.0,197.78,197.67,24.65923883]
[1735656693691,23.776884,197.73,197.65,6.6148]
[1735656693895,23.776884,197.73,197.65,31.27403883]
[1735656694107,23.776884,197.73,197.66,24.65923883]
[1735656694305,20.0,197.76,197.68,24.65923883]
[1735656694505,20.0,197.76,197.66,24.65923883]
[1735656694710,23.776884,197.71,197.65,31.27403883]
[1735656695018,23.776884,197.71,197.65,6.6148]
[1735656695513,23.776884,197.71,197.62,24.65923883]
[1735656695727,23.776884,197.67,197.6,31.27403883]
[1735656696029,23.776884,197.67,197.62,24.65923883]
[1735656696205,23.776884,197.67,197.63,24.65923883]
[1735656696409,1.5821,197.79,197.64,24.65923883]
[1735656696610,23.776884,197.75,197.64,24.65923883]
[1735656696809,20.0,197.72,197.64,24.65923883]
[1735656697009,23.776884,197.71,197.64,24.65923883]
[1735656697224,23.776884,197.71,197.65,24.65923883]
[1735656698020,23.776884,197.71,197.64,24.65923883]
[1735656698200,23.776884,197.71,197.63,24.65923883]
[1735656698402,23.776884,197.71,197.64,24.65923883]
[1735656698921,23.776884,197.71,197.66,24.65923883]
[1735656699125,1.5821,197.79,197.67,24.65923883]
[1735656699320,23.776884,197.78,197.67,24.65923883]
[1735656699643,1.5821,197.79,197.68,24.65923883]
[1735656699824,1.5821,197.79,197.69,24.65923883]
[1735656699997,1.5821,197.79,197.7,24.65923883]
[1735656700203,1.5582,197.84,197.73,24.65923883]
[1735656700701,20.0,197.83,197.73,24.65923883]
[1735656700906,1.5582,197.84,197.74,24.65923883]
[1735656701141,1.5582,197.84,197.76,24.65923883]
[1735656701335,7.926403,197.9,197.77,24.65923883]
[1735656701637,7.926403,197.9,197.81,24.65923883]
[1735656701798,7.926403,197.9,197.79,24.65923883]
[1735656702136,23.776884,197.85,197.79,24.65923883]
[1735656703524,23.776884,197.85,197.77,24.65923883]
[1735656703732,20.0,197.82,197.74,24.65923883]
[1735656703906,23.776884,197.81,197.74,24.65923883]
[1735656704304,23.776884,197.77,197.71,24.65923883]
[1735656704522,23.776884,197.77,197.7,24.65923883]
[1735656705913,23.776884,197.77,197.68,24.65923883]
[1735656706121,23.776884,197.73,197.67,31.10213883]
[1735656706930,23.776884,197.73,197.68,24.65923883]
[1735656707226,20.0,197.74,197.69,24.65923883]
[1735656707428,20.0,197.77,197.68,24.65923883]
[1735656707613,23.776884,197.79,197.69,24.65923883]
[1735656707818,23.776884,197.75,197.68,24.65923883]
[1735656708328,23.776884,197.75,197.67,31.10213883]
[1735656709131,23.776884,197.75,197.69,24.65923883]
[1735656709512,23.776884,197.75,197.67,31.10213883]
[1735656710231,23.776884,197.75,197.72,24.65923883]
[1735656710439,23.776884,197.75,197.71,24.65923883]
[1735656710640,23.776884,197.79,197.71,24.65923883]
[1735656710941,6.2141,197.85,197.72,24.65923883]
[1735656711315,43.776884,197.81,197.72,24.65923883]
[1735656711520,43.776884,197.81,197.71,24.65923883]
[1735656711728,43.776884,197.81,197.7,24.65923883]
[1735656712742,43.776884,197.81,197.68,24.65923883]
[1735656713337,43.776884,197.81,197.67,31.10213883]
[1735656713535,48.7767945,197.81,197.66,24.65923883]
[1735656713727,53.7767945,197.81,197.64,24.65923883]
[1735656713928,48.7767945,197.81,197.65,24.65923883]
[1735656714135,53.7767945,197.81,197.65,24.65923883]
[1735656714330,20.0,197.71,197.65,24.65923883]
[1735656714652,23.776884,197.7,197.63,24.65923883]
[1735656715037,1.6555,197.74,197.62,30.80563883]
[1735656715431,23.776884,197.7,197.62,24.65923883]
[1735656715633,23.776884,197.7,197.61,24.65923883]
[1735656715837,6.3114,197.74,197.61,24.65923883]
[1735656715838,23.776884,197.66,197.61,24.65923883]
[1735656716482,23.776884,197.66,197.57,143.7464]
[1735656716483,23.776884,197.66,197.6,24.65923883]
[1735656716682,43.776884,197.7,197.62,24.65923883]
[1735656717948,6.3114,197.74,197.65,24.65923883]
[1735656718151,1.6555,197.74,197.66,24.65923883]
[1735656718475,23.776884,197.78,197.68,24.65923883]
[1735656718670,23.776884,197.78,197.67,24.65923883]
[1735656718971,23.776884,197.74,197.68,24.65923883]
[1735656719750,20.0,197.77,197.68,24.65923883]
[1735656720163,23.776884,197.72,197.68,24.65923883]
[1735656720369,23.776884,197.72,197.67,24.65923883]
[1735656720980,20.0,197.69,197.63,24.65923883]
[1735656721152,23.776884,197.68,197.63,24.65923883]
[1735656721353,4.6559,197.79,197.65,24.65923883]
[1735656721548,4.6559,197.79,197.66,24.65923883]
[1735656721854,23.776884,197.7,197.64,24.65923883]
[1735656722363,20.0,197.73,197.63,24.65923883]
[1735656722551,23.776884,197.72,197.63,24.65923883]
[1735656722750,23.776884,197.68,197.62,24.65923883]
[1735656723061,23.776884,197.68,197.6,24.65923883]
[1735656723924,23.776884,197.68,197.58,1.659]
[1735656724145,23.776884,197.6,197.51,6.1464]
[1735656724555,23.776884,197.52,197.47,24.65923883]
[1735656724850,23.776884,197.52,197.46,6.1464]
[1735656725069,23.776884,197.52,197.43,24.65923883]
[1735656725353,23.776884,197.52,197.44,24.65923883]
[1735656725538,23.776884,197.48,197.43,24.65923883]
[1735656726531,23.776884,197.48,197.44,24.65923883]
[1735656726752,23.776884,197.48,197.45,24.65923883]
[1735656726949,23.776884,197.48,197.44,24.65923883]
[1735656727534,20.0,197.57,197.45,24.65923883]
[1735656727732,23.776884,197.52,197.45,24.65923883]
[1735656728055,4.6559,197.59,197.45,24.65923883]
[1735656728235,20.0,197.53,197.47,24.65923883]
[1735656728436,4.9999105,197.67,197.48,24.65923883]
[1735656728640,7.926403,197.61,197.5,24.65923883]
[1735656729057,20.0,197.58,197.5,24.65923883]
[1735656729251,7.926403,197.61,197.51,24.65923883]
[1735656729633,23.776884,197.6,197.52,24.65923883]
[1735656729832,20.0,197.62,197.52,24.65923883]
[1735656730035,7.926403,197.65,197.55,24.65923883]
[1735656730246,7.926403,197.65,197.56,24.65923883]
[1735656730650,7.926403,197.67,197.57,24.65923883]
[1735656730835,23.776884,197.63,197.56,24.65923883]
[1735656731038,23.776884,197.63,197.54,24.65923883]
[1735656731359,23.776884,197.66,197.54,24.65923883]
[1735656731663,20.0,197.67,197.56,24.65923883]
[1735656731955,12.582303,197.7,197.59,24.65923883]
[1735656731956,7.926403,197.7,197.59,24.65923883]
[1735656732134,7.926403,197.7,197.58,162.25923883]
[1735656732339,20.0,197.67,197.58,162.25923883]
[1735656732540,20.0,197.67,197.6,24.65923883]
[1735656732753,7.926403,197.72,197.6,24.65923883]
[1735656733058,23.776884,197.71,197.58,137.6]
[1735656733254,7.926403,197.72,197.59,24.65923883]
[1735656733557,20.0,197.66,197.59,24.65923883]
[1735656733755,23.776884,197.65,197.58,24.65923883]
[1735656735152,23.776884,197.65,197.59,24.65923883]
[1735656735458,23.776884,197.67,197.59,24.65923883]
[1735656735636,20.0,197.67,197.59,24.65923883]
[1735656736248,23.776884,197.67,197.59,24.65923883]
[1735656736731,23.776884,197.68,197.59,24.65923883]
[1735656737462,23.776884,197.68,197.6,24.65923883]
[1735656737954,23.776884,197.68,197.59,24.65923883]
[1735656738455,23.776884,197.68,197.6,24.65923883]
[1735656738645,7.926403,197.73,197.63,24.65923883]
[1735656738843,43.776884,197.69,197.63,24.65923883]
[1735656739051,20.0,197.7,197.62,24.65923883]
[1735656739253,23.776884,197.69,197.61,24.65923883]
[1735656739641,23.776884,197.7,197.61,24.65923883]
[1735656739848,23.776884,197.7,197.6,137.6]
[1735656740444,1.595,197.74,197.63,24.65923883]
[1735656740651,7.926403,197.73,197.62,162.25923883]
[1735656740858,23.776884,197.72,197.61,24.65923883]
[1735656741048,23.776884,197.72,197.62,24.65923883]
[1735656741362,23.776884,197.68,197.6,24.65923883]
[1735656741555,23.776884,197.68,197.59,24.65923883]
[1735656741862,23.776884,197.68,197.58,24.65923883]
[1735656742756,7.926403,197.73,197.64,24.65923883]
[1735656742955,23.776884,197.72,197.61,24.65923883]
[1735656743147,31.703287,197.72,197.6,137.6]
[1735656743537,31.703287,197.72,197.59,162.25923883]
[1735656743742,23.776884,197.68,197.59,162.25923883]
[1735656745756,23.776884,197.68,197.59,137.6]
[1735656746944,23.776884,197.68,197.59,162.25923883]
[1735656747146,23.776884,197.68,197.6,24.65923883]
[1735656748174,23.776884,197.68,197.59,162.25923883]
[1735656748773,7.926403,197.73,197.64,24.65923883]
[1735656748942,7.926403,197.73,197.67,24.65923883]
[1735656749142,7.926403,197.73,197.62,6.2244]
[1735656749143,7.926403,197.73,197.68,24.65923883]
[1735656749344,7.926403,197.75,197.67,24.65923883]
[1735656749650,23.776884,197.74,197.68,24.65923883]
[1735656749844,23.776884,197.74,197.66,162.25923883]
[1735656750046,7.926403,197.75,197.67,24.65923883]
[1735656750243,7.926403,197.76,197.68,7.04672038]
[1735656750546,7.926403,197.76,197.66,137.6]
[1735656750547,23.776884,197.75,197.66,137.6]
[1735656750764,23.776884,197.75,197.68,24.65923883]
[1735656751076,23.776884,197.78,197.68,24.65923883]
[1735656751249,20.0,197.75,197.67,24.65923883]
[1735656751660,20.0,197.75,197.68,24.65923883]
[1735656751959,1.6138,197.79,197.69,24.65923883]
[1735656752180,1.6138,197.79,197.7,24.65923883]
[1735656752464,23.776884,197.76,197.69,24.65923883]